[Event "German Bundesliga 2023-24"]
[Site "Germany"]
[Date "2024.02.23"]
[Round "9.22"]
[White "Riehle, Marco"]
[Black "Vitiugov, Nikita"]
[Result "0-1"]
[ECO "B90"]
[WhiteElo "2368"]
[BlackElo "2686"]
[Annotator "TA"]
[PlyCount "74"]
[EventDate "2023.10.20"]
[EventType "team-tourn"]
[EventCountry "GER"]
[SourceTitle "playchess.com"]
[Source "ChessBase"]
[SourceQuality "1"]
[TimeControl "40/6000+30:3000+30"]

{[%evp 18,73,20,11,23,15,23,7,15,21,28,0,0,0,0,0,0,-150,0,0,0,0,0,0,-7,-10,0,0,0,0,0,0,0,0,0,0,0,0,0,-341,-336,-310,-322,-342,-343,-543,-549,-406,-416,-497,-176,-6487,-6487,-29976,-29977,-29990,-29990,-29999]} 1. e4 {[%emt 0:00:06]} c5 {[%emt 0:00:18]} 2. Nf3 {[%emt 0:00:07]} d6 {[%emt 0:01:07]} 3. d4 {[%emt 0:00:56]} cxd4 {[%emt 0:00:06]} 4. Nxd4 {[%emt 0:00:04]} Nf6 {[%emt 0:00:06]} 5. Nc3 {[%emt 0:00:37]} a6 {[%emt 0:00:20]} 6. Be3 {[%emt 0:00:55]} e5 {[%emt 0:00:27]} 7. Nb3 {[%emt 0:00:33]} Be6 {[%emt 0:00:50]} 8. f3 {[%emt 0:01:52][%cal Bf2f3,Bf3f4][%mdl 32]} Nbd7 {[%emt 0:01:15]} 9. Qd2 {[%emt 0:00:48]} h5 {[%emt 0:02:24]} 10. O-O-O {[%emt 0:05:58]} b5 {[%emt 0:01:19]} 11. Kb1 {[%emt 0:06:40]} Rc8 {[%emt 0:03:35]} 12. a3 {[%emt 0:11:42]} Be7 {[%emt 0:02:30] The position is equal.} 13. f4 {[%emt 0:03:17]} Qc7 {[%emt 0:10:03]} 14. Nd5 {[%emt 0:12:38]} Bxd5 {[%emt 0:07:49]} 15. exd5 {[%emt 0:01:08]} Ne4 {[%emt 0:04:33]} 16. Qd3 {[%emt 0:06:47]} f5 {[%emt 0:03:46]} 17. Be2 {[%emt 0:04:23] [#]} ({White should play} 17. g3 $11) 17... g6 {[%emt 0:03:21]} (17... exf4 $1 $17 18. Bxf4 g5 (18... Ne5 19. Bxe5 dxe5 20. Bf3 $11)) 18. Bf3 $11 {[%emt 0:05:34]} Ndf6 {[%emt 0:05:23]} 19. Bxe4 {[%emt 0:02:18]} Nxe4 {[%emt 0:00:40]} 20. Nd2 {[%emt 0:00:27] Prevents Qc4.} Nf6 {[%emt 0:11:40]} 21. Nb3 {[%emt 0:02:52]} Ne4 {[%emt 0:04:27]} 22. Nd2 {[%emt 0:00:55]} Nxd2+ {[%emt 0:01:53]} 23. Qxd2 {[%emt 0:04:05] Black must now prevent fxe5.} e4 {[%emt 0:01:19]} 24. Bd4 {[%emt 0:00:45] Wards off Bf6} Rh7 {[%emt 0:00:34]} 25. Bc3 {[%emt 0:01:18]} Qa7 {[%emt 0:03:24]} 26. g3 {[%emt 0:04:50]} Bf8 {[%emt 0:04:41]} 27. h3 {[%emt 0:01:29]} Rhc7 {[%emt 0:02:34][%cal Oc7c3] And now ...Rxc3! would win.} 28. g4 $2 {[%emt 0:07:12][%mdl 8192] [#]} Rxc3 $1 $19 {[%emt 0:01:20][%mdl 512]} 29. bxc3 {[%emt 0:00:24]} Bg7 {[%emt 0:01:07]} 30. gxf5 {[%emt 0:00:19] [#] Strongly threatening Qg2.} Qc5 $1 {[%emt 0:11:25]} 31. Ka2 {[%emt 0:16:45]} (31. fxg6 $2 Qxa3 32. Rhe1 Bxc3 $19) (31. f6 $142 Bxf6 32. Ka2) 31... Qc4+ {[%emt 0:00:51]} (31... Bxc3 32. Qe2 gxf5 33. Qxh5+ Kd8 34. Qxf5 Qc4+ 35. Kb1 $19) (31... gxf5 32. Rhg1 Bxc3 33. Qe2 Qc4+ 34. Qxc4 Rxc4 35. Rg6 $17) 32. Kb1 {[%emt 0:01:21]} Bxc3 {[%emt 0:08:32]} 33. Qg2 {[%emt 0:00:16]} Bf6 $2 {[%emt 0:01:39]} (33... Kf8 {Threatens to win with ...Qa4.} 34. Rhg1 (34. Qxg6 $2 Bg7 $19) (34. fxg6 $2 Bf6 $19) 34... Bh8) 34. Qd2 $2 {[%emt 0:05:19]} (34. fxg6 $2 {loses.} Kf8 35. Kc1 e3 36. g7+ Kg8 $19) (34. Qxg6+ $2 {is the wrong capture.} Ke7 35. Qh7+ (35. Qxh5 $2 Qxc2#) 35... Kf8 36. Qh6+ (36. Qxh5 $2 Qxc2#) 36... Bg7 37. Qxd6+ (37. Qxh5 $2 Qxc2#) 37... Kg8 $19) (34. Rde1 Qc3 35. Qxe4+ (35. fxg6 $2 Qb2#) 35... Kf8 36. Kc1) 34... Qa4 {[%emt 0:01:15]} 35. Qc1 {[%emt 0:01:12]} b4 {[%emt 0:02:31] Black mates.} 36. Rh2 {[%emt 0:01:38]} bxa3 {[%emt 0:00:55][%cal Ra3a2]} (36... Qxa3 $2 {too greedy.} 37. Qxa3 (37. fxg6 $2 Qa1#) 37... bxa3 38. fxg6 $18) 37. fxg6 {[%emt 0:00:04]} a2# {[%emt 0:00:04] Weighted Error Value: White=0.66/Black=0.23 (precise) .  Loses game:     	White=1     	---        Mistake:       	White=3     	Black=2      Inaccurate:     	White=2     	---        OK:         	White=7     	Black=10     Best:        	White=2     	Black=4      Strong:       	---       	Black=1      Brilliant:      	---       	Black=1} 0-1

[Event "German Bundesliga 2023-24"]
[Site "Germany"]
[Date "2024.02.23"]
[Round "9.23"]
[White "Wojtaszek, Radoslaw"]
[Black "Georgiev, Kiril"]
[Result "1/2-1/2"]
[ECO "D60"]
[WhiteElo "2668"]
[BlackElo "2548"]
[Annotator "TA"]
[PlyCount "42"]
[EventDate "2023.10.20"]
[EventType "team-tourn"]
[EventCountry "GER"]
[SourceTitle "playchess.com"]
[Source "ChessBase"]
[SourceQuality "1"]
[TimeControl "40/6000+30:3000+30"]

{[%evp 18,42,19,18,43,20,11,12,15,28,8,0,0,0,0,0,0,0,-16,-34,-37,-34,-13,-19,-20,-46,0]} 1. d4 {[%emt 0:00:03]} Nf6 {[%emt 0:00:09]} 2. c4 {[%emt 0:00:04]} e6 {[%emt 0:00:56]} 3. Nf3 {[%emt 0:00:06]} d5 {[%emt 0:00:20]} 4. Nc3 {[%emt 0:00:08]} c6 {[%emt 0:01:57]} 5. Bg5 {[%emt 0:00:25]} h6 {[%emt 0:00:11]} 6. Bh4 {[%emt 0:00:04]} Be7 {[%emt 0:02:38]} 7. e3 {[%emt 0:00:48]} Nbd7 {[%emt 0:00:11][%cal Bb8d7,Bd7c5,Bc5e4][%mdl 32]} 8. Bd3 {[%emt 0:09:11]} O-O {[%emt 0:03:03]} 9. O-O {[%emt 0:00:26]} dxc4 {[%emt 0:03:29]} 10. Bxc4 {[%emt 0:00:12]} c5 {[%emt 0:00:08]} 11. Qe2 {[%emt 0:07:08]} a6 {[%emt 0:03:00]} 12. dxc5 {[%emt 0:03:52]} Nxc5 {[%emt 0:00:38] The position is equal.} 13. Rfd1 {[%emt 0:03:04]} Qe8 {[%emt 0:00:41]} 14. a4 {[%emt 0:04:44]} b6 {[%emt 0:02:38]} 15. e4 {[%emt 0:09:42][%cal Be3e4,Be4e5][%mdl 32]} Bb7 {[%emt 0:02:16]} 16. e5 {[%emt 0:01:22]} Nfe4 {[%emt 0:02:06]} 17. Nxe4 {[%emt 0:01:52]} Nxe4 {[%emt 0:01:09]} 18. Bd3 {[%emt 0:13:54]} Nc5 {[%emt 0:02:49] [#] aiming for ...Bxf3.} 19. Bxe7 {[%emt 0:00:04]} Qxe7 {[%emt 0:00:24]} 20. Bc2 {[%emt 0:00:04]} a5 {[%emt 0:12:22]} 21. Rd6 {[%emt 0:14:06]} Rab8 {[%emt 0:04:26] Weighted Error Value: White=0.07 (flawless) /Black=0.03 (flawless) .  Mistake:       	---       	Black=1      Inaccurate:     	White=1     	---        OK:         	White=5     	Black=6      Best:        	---       	Black=1} (21... Rfd8 $15 22. Rad1 (22. Rxb6 Qc7 $15) 22... Rac8) 1/2-1/2

[Event "German Bundesliga 2023-24"]
[Site "Germany"]
[Date "2024.02.23"]
[Round "9.24"]
[White "Lai, Hing Ting"]
[Black "Kasimdzhanov, Rustam"]
[Result "0-1"]
[ECO "D34"]
[WhiteElo "2464"]
[BlackElo "2679"]
[Annotator "RC"]
[PlyCount "134"]
[EventDate "2023.10.20"]
[EventType "team-tourn"]
[EventCountry "GER"]
[SourceTitle "playchess.com"]
[Source "ChessBase"]
[SourceQuality "1"]
[TimeControl "40/6000+30:3000+30"]

1. Nf3 {[%emt 0:00:02]} d5 {[%emt 0:00:38]} 2. g3 {[%emt 0:00:12]} Nf6 {[%emt 0:05:00]} 3. Bg2 {[%emt 0:00:23]} e6 {[%emt 0:00:34]} 4. O-O {[%emt 0:00:53]} Be7 {[%emt 0:01:05]} 5. d4 {[%emt 0:00:46]} O-O {[%emt 0:00:30]} 6. c4 {[%emt 0:00:18]} c5 {[%emt 0:04:05]} 7. dxc5 {[%emt 0:04:25]} Bxc5 {[%emt 0:01:12]} 8. Nc3 {[%emt 0:01:13]} Nc6 {[%emt 0:00:28]} 9. cxd5 {[%emt 0:02:06]} exd5 {[%emt 0:00:09]} 10. Bg5 {[%emt 0:09:51]} d4 {[%emt 0:01:05]} 11. Bxf6 {[%emt 0:08:11]} Qxf6 {[%emt 0:01:53]} 12. Ne4 {[%emt 0:01:44]} Qe7 {[%emt 0:00:16]} 13. Nxc5 {[%emt 0:00:38]} Qxc5 {[%emt 0:00:13]} 14. Qd2 {[%emt 0:01:57]} Rd8 {[%emt 0:11:11]} 15. Rac1 {[%emt 0:04:53]} Qb6 {[%emt 0:07:42]} 16. b3 {[%emt 0:12:47]} h6 {[%emt 0:04:36]} 17. Rfe1 {[%emt 0:09:22]} Be6 {[%emt 0:02:29]} 18. e3 {[%emt 0:08:52]} dxe3 {[%emt 0:04:17]} 19. Qxe3 {[%emt 0:00:06]} Nb4 {[%emt 0:02:22]} 20. Ne5 {[%emt 0:04:09]} Qxe3 {[%emt 0:08:06]} 21. Rxe3 {[%emt 0:01:02]} Nxa2 {[%emt 0:14:06]} 22. Ra1 {[%emt 0:04:58]} Nb4 {[%emt 0:01:30]} 23. Bxb7 {[%emt 0:03:07]} Nc2 {[%emt 0:01:05]} 24. Rb1 {[%emt 0:11:40]} Rab8 {[%emt 0:08:39]} 25. Nc6 {[%emt 0:01:43]} Nxe3 {[%emt 0:00:10]} 26. Nxd8 {[%emt 0:01:40]} Rxd8 {[%emt 0:01:44]} 27. fxe3 {[%emt 0:00:07]} Rb8 {[%emt 0:07:51]} 28. Bg2 {[%emt 0:01:40]} Rxb3 {[%emt 0:04:42]} 29. Ra1 {[%emt 0:00:08]} Rxe3 {[%emt 0:00:23]} 30. Rxa7 {[%emt 0:00:14]} g5 {[%emt 0:01:15]} 31. Rc7 {[%emt 0:02:53]} Re2 {[%emt 0:01:11]} 32. Rc1 {[%emt 0:06:40]} Kg7 {[%emt 0:01:02]} 33. Rf1 {[%emt 0:00:33]} Rd2 {[%emt 0:00:34]} 34. Rf2 {[%emt 0:01:12]} Rd1+ {[%emt 0:00:27]} 35. Rf1 {[%emt 0:00:04]} Rd4 {[%emt 0:00:05]} 36. Rf2 {[%emt 0:02:06]} h5 {[%emt 0:01:43]} 37. h3 {[%emt 0:07:08]} f5 {[%emt 0:05:07]} 38. Rc2 {[%emt 0:00:00]} h4 {[%emt 0:00:22]} 39. gxh4 {[%emt 0:00:00]} Rxh4 {[%emt 0:00:20]} 40. Rc3 {[%emt 0:00:00]} Kf6 {[%emt 0:00:41]} 41. Kf2 {[%emt 0:50:31]} Rb4 {[%emt 0:52:27]} 42. Rc2 {[%emt 0:00:00]} Rb3 {[%emt 0:00:00]} 43. Kg1 {[%emt 0:00:00]} Ra3 {[%emt 0:00:00]} 44. Kh2 {[%emt 0:00:00]} Re3 {[%emt 0:00:00]} 45. Rf2 {[%emt 0:00:00]} Kg6 {[%emt 0:00:00]} 46. Bf3 {[%emt 0:00:00]} Rd3 {[%emt 0:00:00]} 47. Be2 {[%emt 0:00:00]} Ra3 {[%emt 0:00:00]} 48. Bf3 {[%emt 0:00:00]} Bc4 {[%emt 0:00:00]} 49. Kg2 {[%emt 0:00:00]} Kf6 {[%emt 0:00:00]} 50. Rc2 {[%emt 0:00:00]} Be6 {[%emt 0:00:00]} 51. Rf2 {[%emt 0:00:00]} Rc3 {[%emt 0:00:00]} 52. Kh2 {[%emt 0:00:00]} Ke5 {[%emt 0:00:00]} 53. Bg2 {[%emt 0:00:00]} Bc4 {[%emt 0:00:00]} 54. Rd2 {[%emt 0:00:00]} Bd3 {[%emt 0:00:00]} 55. Rb2 {[%emt 0:00:00]} Kf4 {[%emt 0:00:00]} 56. Rf2+ {[%emt 0:00:00]} Ke5 {[%emt 0:00:00]} 57. Rb2 {[%emt 0:00:00]} Ra3 {[%emt 0:00:00]} 58. Rf2 {[%emt 0:00:00]} Kd4 {[%emt 0:00:00]} 59. Rf3 {[%emt 0:00:00]} Ra5 {[%emt 0:00:00]} 60. Rf2 {[%emt 0:00:36]} Ke3 {[%emt 0:00:00]} 61. Rb2 {[%emt 0:01:11]} f4 {[%emt 0:03:23]} 62. Bb7 {[%emt 0:04:27]} Rb5 {[%emt 0:09:46]} 63. Rxb5 {[%emt 0:00:07]} Bxb5 {[%emt 0:00:03]} 64. Kg2 {[%emt 0:02:07]} Bd7 {[%emt 0:00:55]} 65. Kh2 {[%emt 0:00:26]} Kf2 {[%emt 0:00:07]} 66. Bd5 {[%emt 0:00:40]} Be8 {[%emt 0:00:12]} 67. Be6 {[%emt 0:01:03]} Bh5 {[%emt 0:00:07]} 0-1

[Event "German Bundesliga 2023-24"]
[Site "Germany"]
[Date "2024.02.23"]
[Round "9.25"]
[White "Bluebaum, Matthias"]
[Black "Nakamura, Hikaru"]
[Result "1/2-1/2"]
[ECO "D31"]
[WhiteElo "2668"]
[BlackElo "2788"]
[Annotator "TA"]
[PlyCount "45"]
[EventDate "2023.10.20"]
[EventType "team-tourn"]
[EventCountry "GER"]
[SourceTitle "playchess.com"]
[Source "ChessBase"]
[SourceQuality "1"]
[TimeControl "40/6000+30:3000+30"]

{[%evp 9,45,21,28,18,23,22,28,35,22,29,31,18,11,7,31,18,23,29,20,21,14,15,36,32,35,6,17,6,9,0,0,0,0,0,0,0,0,0]} 1. d4 {[%emt 0:00:05]} d5 {[%emt 0:00:13]} 2. c4 {[%emt 0:00:13]} e6 {[%emt 0:00:05]} 3. Nf3 {[%emt 0:00:37]} a6 {[%emt 0:00:09]} 4. cxd5 {[%emt 0:02:35]} exd5 {[%emt 0:01:01]} 5. Nc3 {[%emt 0:00:29]} c6 {[%emt 0:00:08]} 6. Qc2 {[%emt 0:07:12]} Nf6 {[%emt 0:00:52]} 7. Bg5 {[%emt 0:00:24]} Be6 {[%emt 0:01:10]} 8. e3 {[%emt 0:01:17] White has an edge.} h6 {[%emt 0:01:29]} 9. Bf4 {[%emt 0:03:05]} c5 {[%emt 0:02:14]} 10. dxc5 {[%emt 0:05:22]} Bxc5 {[%emt 0:01:22]} 11. Be2 {[%emt 0:03:20]} Nc6 {[%emt 0:03:04]} 12. O-O {[%emt 0:02:42][%cal Oc3b5]} Rc8 {[%emt 0:12:14]} 13. Rfd1 {[%emt 0:08:58][%cal Oc3d5]} Qe7 {[%emt 0:00:32]} 14. Ne5 {[%emt 0:05:36]} Bb4 {[%emt 0:17:43]} 15. Bf3 {[%emt 0:13:01][%cal Rf3d5]} Bxc3 {[%emt 0:13:37]} (15... O-O {keeps more tension.} 16. Rac1 Na7 17. Qd3 Bxc3 18. Rxc3 Ne4) 16. Qxc3 {[%emt 0:08:05]} O-O {[%emt 0:02:32]} 17. Nxc6 {[%emt 0:03:26]} Rxc6 {[%emt 0:01:01] The position is equal.} 18. Qd2 {[%emt 0:04:59]} Rfc8 {[%emt 0:02:41]} 19. Rac1 {[%emt 0:03:24]} Ne4 {[%emt 0:03:04]} 20. Bxe4 {[%emt 0:00:40]} Rxc1 {[%emt 0:00:21]} 21. Rxc1 {[%emt 0:00:06]} Rxc1+ {[%emt 0:00:03]} 22. Qxc1 {[%emt 0:00:04]} dxe4 {[%emt 0:00:04]} 23. a3 {[%emt 0:00:23] Weighted Error Value: White=0.05 (flawless) /Black=0.05 (flawless) .  Inaccurate:     	White=1     	---        OK:         	White=8     	Black=7} 1/2-1/2

[Event "German Bundesliga 2023-24"]
[Site "Germany"]
[Date "2024.02.23"]
[Round "9.26"]
[White "Abdusattorov, Nodirbek"]
[Black "Kamsky, Gata"]
[Result "1-0"]
[ECO "B48"]
[WhiteElo "2716"]
[BlackElo "2634"]
[Annotator "TA"]
[PlyCount "51"]
[EventDate "2023.10.20"]
[EventType "team-tourn"]
[EventCountry "GER"]
[SourceTitle "playchess.com"]
[Source "ChessBase"]
[SourceQuality "1"]
[TimeControl "40/6000+30:3000+30"]

{[%evp 15,51,37,37,11,15,0,22,15,29,0,26,23,46,30,37,25,17,28,37,35,45,47,51,51,52,52,56,42,56,31,26,32,29,0,417,435,372,392]} 1. e4 {[%emt 0:00:10]} c5 {[%emt 0:00:29]} 2. Nf3 {[%emt 0:00:08]} e6 {[%emt 0:00:07]} 3. d4 {[%emt 0:00:08]} cxd4 {[%emt 0:00:08]} 4. Nxd4 {[%emt 0:00:05]} Nc6 {[%emt 0:00:06]} 5. Nc3 {[%emt 0:00:18]} Qc7 {[%emt 0:00:07]} 6. Be3 {[%emt 0:00:34]} a6 {[%emt 0:00:07]} 7. Bd3 {[%emt 0:00:30]} b5 {[%emt 0:05:12]} 8. Nxc6 {[%emt 0:00:22]} Qxc6 {[%emt 0:00:47]} 9. Qd2 {[%emt 0:00:08]} Bb7 {[%emt 0:02:50]} 10. O-O-O {[%emt 0:00:32]} b4 {[%emt 0:29:58]} 11. Ne2 {[%emt 0:01:06] The position is equal.} Nf6 {[%emt 0:00:44][%cal Oc6a4]} 12. f3 {[%emt 0:00:25]} Bc5 {[%emt 0:00:46]} 13. Kb1 {[%emt 0:00:34]} d6 {[%emt 0:12:38]} 14. h4 {[%emt 0:00:51]} Nd7 {[%emt 0:06:02]} 15. h5 {[%emt 0:01:39]} h6 {[%emt 0:00:26]} 16. c3 {[%emt 0:10:32]} a5 {[%emt 0:13:53]} 17. Nd4 {[%emt 0:05:08]} Qb6 {[%emt 0:00:23]} 18. Bb5 {[%emt 0:00:05]} Rd8 {[%emt 0:02:20]} 19. Rh3 {[%emt 0:05:59][%cal Bh1h3,Bh3g3,Bg3c3][%mdl 32]} bxc3 {[%emt 0:13:56]} 20. Qxc3 {[%emt 0:00:12][%cal Od4e6] And now Nxe6! would win.} Ke7 {[%emt 0:05:59]} 21. a4 {[%emt 0:05:31]} (21. Bxd7 {simplifies} Rxd7 22. Rg3 Rg8 23. Bxh6 Bxd4 24. Qxd4 Qxd4 25. Rxd4 Rh8 26. Bd2) 21... Ne5 {[%emt 0:00:29]} 22. Rg3 {[%emt 0:09:16]} Rhg8 {[%emt 0:00:08]} 23. Ka1 {[%emt 0:01:44] [#] Hoping for f4.} Rc8 {[%emt 0:01:03]} 24. f4 {[%emt 0:01:57]} Bxd4 {[%emt 0:01:42][%mdl 8192]} (24... Nc6 $1 $11 {and Black stays safe.}) 25. Bxd4 $18 {[%emt 0:00:27]} ({Less strong is} 25. Qxd4 Qxd4 26. Rxd4 (26. Bxd4 Nd7 $16) 26... Nc6 $16) 25... Rxc3 {[%emt 0:02:11]} 26. Rxc3 {[%emt 0:00:02] Weighted Error Value: White=0.10 (very precise) /Black=0.29 (precise) .  Loses game:     	---       	Black=1      Inaccurate:     	White=1     	Black=1      OK:         	White=4     	Black=7      Best:        	White=1     	---} 1-0

[Event "German Bundesliga 2023-24"]
[Site "Germany"]
[Date "2024.02.23"]
[Round "9.27"]
[White "Gustafsson, Jan"]
[Black "Duda, Jan-Krzysztof"]
[Result "0-1"]
[ECO "D27"]
[WhiteElo "2620"]
[BlackElo "2726"]
[Annotator "TA"]
[PlyCount "100"]
[EventDate "2023.10.20"]
[EventType "team-tourn"]
[EventCountry "GER"]
[SourceTitle "playchess.com"]
[Source "ChessBase"]
[SourceQuality "1"]
[TimeControl "40/6000+30:3000+30"]

{[%evp 15,100,16,17,14,21,20,17,1,9,0,14,1,0,-25,-22,-37,-33,-32,-14,-36,-35,-86,-89,-93,-88,-82,-89,-86,-82,-81,-87,-80,-83,-79,-77,-81,-84,-79,-79,-87,-75,-77,-74,-83,-72,-146,-135,-141,-77,-148,-93,-177,-179,-140,-146,-204,-210,-421,-453,-445,-458,-447,-434,-1016,-940,-1208,-1128,-1035,-1035,-1683,-1499,-29969,-11166,-29972,-29974,-29974,-29974,-29971,-29973,-29973,-29974,-29974,-29974,-29989,-29983,-29996,-29997]} 1. d4 {[%emt 0:00:06]} d5 {[%emt 0:00:04]} 2. c4 {[%emt 0:00:11]} dxc4 {[%emt 0:00:04]} 3. Nf3 {[%emt 0:00:54]} Nf6 {[%emt 0:00:07]} 4. e3 {[%emt 0:00:12]} e6 {[%emt 0:00:05]} 5. Bxc4 {[%emt 0:00:10]} c5 {[%emt 0:00:05]} 6. O-O {[%emt 0:00:40]} a6 {[%emt 0:00:06]} 7. b3 {[%emt 0:05:19]} Nbd7 {[%emt 0:01:05]} 8. Bb2 {[%emt 0:05:36]} Be7 {[%emt 0:00:29]} 9. dxc5 {[%emt 0:02:14]} Bxc5 {[%emt 0:00:29]} 10. Nbd2 {[%emt 0:02:46][%cal Bb1d2,Bd2c4,Bc4b2,Bb2d3][%mdl 32]} b6 {[%emt 0:05:09]} 11. Be2 {[%emt 0:17:09] The position is equal.} Bb7 {[%emt 0:02:55]} 12. Nc4 {[%emt 0:00:16]} O-O {[%emt 0:00:33]} 13. Nfe5 {[%emt 0:00:29]} Nxe5 {[%emt 0:13:08]} 14. Bxe5 {[%emt 0:00:29]} b5 {[%emt 0:03:30]} 15. Nb2 {[%emt 0:26:06]} Ne4 {[%emt 0:36:49]} 16. Nd3 {[%emt 0:05:48]} Bb6 {[%emt 0:03:40]} 17. Rc1 {[%emt 0:06:46]} Qd5 {[%emt 0:04:28] ...Nc5 is the strong threat.} 18. Bf3 {[%emt 0:00:29]} (18. Bc7 $15 Ng5 19. Bf3 (19. Bxb6 $2 Qxg2#) (19. Nf4 $2 Nh3+ 20. Kh1 Nxf4 $19) 19... Qxf3 (19... Nxf3+ 20. Qxf3 Qxf3 21. gxf3 $15) 20. gxf3 Bxf3 21. h4 Bxd1 22. hxg5 Bxc7 23. Rfxd1) 18... Rad8 $17 {[%emt 0:01:03]} 19. Bc7 {[%emt 0:01:16]} Bxc7 {[%emt 0:00:55]} 20. Rxc7 {[%emt 0:00:07][%cal Od1a1] [#]} Ba8 $1 {[%emt 0:00:11]} 21. Qc1 {[%emt 0:11:59]} Qxd3 {[%emt 0:06:29]} 22. Rd1 {[%emt 0:00:07]} Nd2 {[%emt 0:00:07]} 23. Bxa8 {[%emt 0:00:08]} Nxb3 {[%emt 0:00:27]} 24. Rxd3 {[%emt 0:00:12]} Nxc1 {[%emt 0:00:05]} 25. Rxd8 {[%emt 0:00:11]} Rxd8 {[%emt 0:00:06]} 26. Rxc1 {[%emt 0:00:17]} Rxa8 {[%emt 0:00:04][%mdl 4096] Endgame. KR-KR} 27. Kf1 {[%emt 0:00:18]} Kf8 {[%emt 0:06:52]} 28. Rc7 {[%emt 0:07:26]} b4 {[%emt 0:03:40]} 29. Ke2 {[%emt 0:04:06]} a5 {[%emt 0:00:06]} 30. e4 {[%emt 0:09:56]} (30. Kd2 $142) 30... g5 {[%emt 0:07:46]} 31. Kd3 {[%emt 0:02:40]} Kg7 {[%emt 0:00:43]} ({Black should play} 31... a4 32. Kc2 g4) 32. f3 {[%emt 0:00:45]} (32. Rc5 $142) 32... h5 {[%emt 0:00:49]} (32... a4 $142 33. Kc2 Rb8) 33. g3 {[%emt 0:00:14]} (33. Rc5 $17) 33... h4 {[%emt 0:04:56]} 34. Rc5 {[%emt 0:01:11]} Kf6 {[%emt 0:01:23]} 35. Rb5 {[%emt 0:00:40]} (35. gxh4 $17 {was worth a try.} gxh4 36. Kc4) 35... h3 $19 {[%emt 0:04:47] aiming for ...Rc8.} 36. Ke3 $2 {[%emt 0:00:22]} (36. g4) 36... Rc8 {[%emt 0:00:42]} 37. e5+ {[%emt 0:00:31]} Kg6 {[%emt 0:01:02]} 38. Rxa5 {[%emt 0:00:08]} Rc2 {[%emt 0:00:29]} 39. Ra4 {[%emt 0:00:53]} (39. Ra8 $142 Kf5 (39... Rxh2 $2 40. Rg8+ Kh6 41. g4 $19) 40. Rh8 Rxh2 (40... Kxe5 $2 41. Rxh3 Rc3+ 42. Ke2 $19) 41. Kd4) 39... Rxh2 {[%emt 0:00:46] ( -> ...Rg2)} 40. Rxb4 {[%emt 0:00:07]} Rg2 {[%emt 0:01:15]} (40... Rxa2 $2 41. g4 $19) 41. Rb1 {[%emt 0:50:29] Against h2} Rxg3 {[%emt 0:51:59] ...Kf5 would now be deadly.} 42. a4 {[%emt 0:00:00]} Kf5 {[%emt 0:00:00][%cal Og5g4] Strongly threatening ...g4!} 43. a5 {[%emt 0:00:00]} g4 {[%emt 0:00:00]} 44. Ra1 {[%emt 0:00:00]} Rxf3+ {[%emt 0:00:00] Black mates.} 45. Ke2 {[%emt 0:00:00]} h2 {[%emt 0:00:00]} 46. a6 {[%emt 0:00:00] [#]} Ra3 $3 {[%emt 0:00:00][%mdl 512]} 47. Rxa3 {[%emt 0:00:00]} h1=Q {[%emt 0:00:00]} (47... h1=R $2 48. a7 Rh8 49. a8=Q $18 (49. a8=B Kxe5 50. Ra6 Rc8 $17) (49. a8=R Rh2+ 50. Ke3 Kxe5 $18)) 48. a7 {[%emt 0:00:00]} Qa8 {[%emt 0:00:00]} (48... Kxe5 $2 {loses.} 49. a8=Q (49. a8=B $2 {too greedy.} Qb1 $19) 49... Qh2+ 50. Kf1 $18) 49. Ra5 {[%emt 0:00:00]} g3 {[%emt 0:00:00]} 50. Kf1 {[%emt 0:00:00]} Qf3+ {[%emt 0:00:00] Weighted Error Value: White=0.67/Black=0.04 (flawless) .  Mistake:       	White=7     	Black=2      OK:         	White=13    	Black=11     Best:        	White=3     	Black=6      Strong:       	---       	Black=1} 0-1